bitfinex/quotes_ETHUSD_20250906
["timestamp","ask_amount","ask_price","bid_price","bid_amount"]
[1757129615276,0.001,4313.5,4313.4,7.8289]
[1757129615462,0.001,4313.5,4313.4,22.373]
[1757129617674,0.001,4313.5,4313.4,6.184]
[1757129618248,0.3083,4313.5,4313.4,2.319]
[1757129618448,1.5741,4313.5,4313.4,2.319]
[1757129618765,6.26516812,4313.5,4313.4,3.6]
[1757129619868,6.99168493,4313.5,4313.4,3.6]
[1757129622870,5.79878493,4313.5,4313.4,3.6]
[1757129625599,5.79878493,4313.5,4313.4,17.021]
[1757129626387,5.32498493,4313.5,4313.4,17.021]
[1757129626965,5.30438493,4313.5,4313.4,17.021]
[1757129627186,5.73668493,4313.5,4313.4,17.021]
[1757129628246,5.30438493,4313.5,4313.4,17.021]
[1757129630801,5.01768493,4313.5,4313.4,18.6835]
[1757129631004,5.01768493,4313.5,4313.4,17.021]
[1757129631199,5.01768493,4313.5,4313.4,18.6835]
[1757129631401,5.01768493,4313.5,4313.4,19.121]
[1757129631587,5.01768493,4313.5,4313.4,18.6835]
[1757129633819,5.01768493,4313.5,4313.4,19.121]
[1757129634826,12.03768493,4313.5,4313.4,19.121]
[1757129635385,12.03768493,4313.5,4313.4,18.3788]
[1757129635581,12.03768493,4313.5,4313.4,18.6835]
[1757129635788,12.03768493,4313.5,4313.4,17.021]
[1757129635987,12.03768493,4313.5,4313.4,19.121]
[1757129637430,12.03768493,4313.5,4313.4,18.6835]
[1757129638718,9.03768493,4313.5,4313.4,19.121]
[1757129638913,9.03768493,4313.5,4313.4,18.6835]
[1757129639706,12.03768493,4313.5,4313.4,18.6835]
[1757129640515,12.03768493,4313.5,4313.4,19.121]
[1757129641480,0.49916812,4313.5,4313.4,19.121]
[1757129641635,0.001,4313.5,4313.4,16.4782]
[1757129641967,0.001,4313.5,4313.4,16.0407]
[1757129642512,0.001,4313.5,4313.4,16.4782]
[1757129642718,0.001,4313.5,4313.4,20.3402]
[1757129643468,0.001,4313.5,4313.4,10.0872]
[1757129643619,0.001,4313.5,4313.4,15.307]
[1757129643812,0.001,4313.5,4313.4,7.92960006]
[1757129644266,0.001,4313.5,4313.4,7.58220012]
[1757129644769,0.001,4313.5,4313.4,7.23480018]
[1757129645054,0.001,4313.5,4313.4,6.88740024]
[1757129645557,0.001,4313.5,4313.4,22.7300003]
[1757129645762,0.001,4313.5,4313.4,13.5700003]
[1757129645957,0.001,4313.5,4313.4,13.22260036]
[1757129646261,0.001,4313.5,4313.4,12.87525834]
[1757129646460,0.001,4313.5,4313.4,9.86425834]
[1757129646645,0.001,4313.5,4313.4,7.81291632]
[1757129646833,0.001,4313.5,4313.4,7.8256]
[1757129647033,0.001,4313.5,4313.4,7.47825798]
[1757129647447,0.001,4313.5,4313.4,7.13091596]
[1757129647930,0.001,4313.5,4313.4,6.78357394]
[1757129648334,0.91553,4313.5,4313.4,5.82965798]
[1757129648737,0.91553,4313.5,4313.4,5.48231596]
[1757129649046,0.91553,4313.5,4313.4,5.13497394]
[1757129649581,0.91553,4313.5,4313.4,4.78763192]
[1757129649979,0.91553,4313.5,4313.4,4.4402899]
[1757129650279,0.91553,4313.5,4313.4,4.09294788]
[1757129650645,0.792,4313.4,4313.1,1.22420586]
[1757129650832,0.792,4313.4,4312.9,0.69897453]
[1757129650833,0.9072,4313.4,4312.9,0.69897453]
[1757129651184,0.12353,4313.5,4313.3,0.2908]
[1757129651677,0.12353,4313.5,4313.0,2.315]
[1757129651678,0.792,4313.2,4313.0,2.315]
[1757129651877,0.12353,4313.5,4313.1,3.58]
[1757129652048,0.792,4313.4,4313.1,3.58]
[1757129652231,0.001,4313.5,4313.1,3.58]
[1757129652633,0.9072,4313.1,4313.0,3.00996164]
[1757129652867,0.9072,4313.1,4313.0,6.87096164]
[1757129653364,0.9072,4313.1,4313.0,8.20356164]
[1757129655387,0.9072,4313.1,4313.0,17.36356164]
[1757129655564,0.9072,4313.1,4313.0,24.39256164]
[1757129656880,0.9072,4313.1,4313.0,21.62356164]
[1757129658782,0.9072,4313.1,4313.0,15.23256164]
[1757129659480,0.9072,4313.1,4313.0,15.23656164]
[1757129660801,0.9072,4313.1,4313.0,9.91156164]
[1757129661000,0.9072,4313.1,4313.0,8.20756164]
[1757129664108,0.9072,4313.1,4313.0,7.86023651]
[1757129664632,0.9072,4313.1,4313.0,7.51291138]
[1757129665020,0.9072,4313.1,4313.0,7.16558625]
[1757129665421,0.9072,4313.1,4313.0,23.00626112]
[1757129665920,0.9072,4313.1,4313.0,22.65893599]
[1757129666322,0.9072,4313.1,4313.0,13.15261086]
[1757129666524,0.9072,4313.1,4313.0,7.82761086]
[1757129666693,0.9072,4313.1,4313.0,9.79528573]
[1757129667032,0.9072,4313.1,4313.0,9.4479606]
[1757129667232,0.9072,4313.1,4313.0,9.2166]
[1757129667441,0.9072,4313.1,4313.0,7.16527487]
[1757129667836,0.9072,4313.1,4313.0,6.81794974]
[1757129668333,0.9072,4313.1,4313.0,6.47062461]
[1757129668645,0.9072,4313.1,4313.0,2.26229948]
[1757129669024,0.9072,4313.1,4313.0,1.91497435]
[1757129669409,0.9072,4313.1,4313.0,1.56764922]
[1757129669835,0.9072,4313.1,4313.0,3.76964922]
[1757129669836,0.1152,4313.1,4313.0,3.76964922]
[1757129670068,0.1152,4313.1,4313.0,4.78693168]
[1757129670759,0.1152,4313.1,4313.0,6.11953168]
[1757129671392,0.1152,4313.1,4313.0,5.79712555]
[1757129673299,0.1152,4313.1,4313.0,9.11953168]
[1757129675487,0.1152,4313.1,4313.0,25.30753168]
[1757129676674,0.1152,4313.1,4313.0,25.31153168]
[1757129676880,0.1152,4313.1,4313.0,22.54253168]
[1757129678574,0.1152,4313.1,4313.0,16.15253168]
[1757129678894,0.1152,4313.1,4313.0,10.82753168]
[1757129680989,0.1152,4313.1,4313.0,9.12652555]
[1757129681290,0.1152,4313.1,4313.0,5.26652555]
[1757129681605,0.4067,4313.1,4313.0,5.26652555]
[1757129681778,0.8401,4313.1,4313.0,9.12652555]
[1757129682476,0.5486,4313.1,4313.0,9.12652555]
[1757129682683,0.1152,4313.1,4313.0,9.12652555]
[1757129683270,0.1152,4313.1,4313.0,8.77930735]
[1757129683985,0.5486,4313.1,4313.0,8.77930735]
[1757129684787,0.5486,4313.1,4313.0,7.55887633]
[1757129685500,0.1152,4313.1,4313.0,23.39565813]
[1757129685701,0.1152,4313.1,4313.0,23.04843993]
[1757129685875,0.1152,4313.1,4313.0,20.28043993]
[1757129686198,0.1152,4313.1,4313.0,19.93322173]
[1757129686406,0.5486,4313.1,4313.0,20.36662173]
[1757129686695,0.5486,4313.1,4313.0,13.63036012]
[1757129686896,0.5486,4313.1,4313.0,8.30636012]
[1757129687063,0.5486,4313.1,4313.0,6.60336012]
[1757129687606,0.5486,4313.1,4313.0,2.74336012]
[1757129687898,0.5486,4313.1,4313.0,6.60236012]
[1757129688471,0.1152,4313.1,4313.0,7.93196012]
[1757129688729,0.001,4313.3,4313.1,3.0]
[1757129688865,0.001,4313.3,4313.2,6.859]
[1757129689266,0.001,4313.3,4313.2,7.2924]
[1757129691299,0.001,4313.3,4313.2,8.622]
[1757129693506,0.001,4313.3,4313.2,4.763]
[1757129693707,0.001,4313.3,4313.2,7.2924]
[1757129693896,2.0894,4313.3,4313.2,7.2924]
[1757129695369,2.0894,4313.3,4313.2,21.7734]
[1757129695573,2.0894,4313.3,4313.2,23.4764]
[1757129698101,2.0894,4313.3,4313.2,14.3194]
[1757129698284,2.29844,4313.3,4313.2,14.3194]
[1757129699319,2.0894,4313.3,4313.2,14.3194]
[1757129700104,2.0894,4313.3,4313.2,7.2924]
[1757129700306,0.7259,4313.3,4313.2,7.2924]
[1757129701747,2.0894,4313.3,4313.2,7.2924]
[1757129704298,2.8814,4313.3,4313.2,0.4334]
[1757129704534,3.16964,4313.3,4313.2,1.2144]
[1757129704921,3.16964,4313.3,4313.2,0.781]
[1757129705537,3.16964,4313.3,4313.2,16.965]
[1757129707448,3.16964,4313.3,4313.2,17.275]
[1757129707607,1.224264,4313.2,4313.0,0.004]
[1757129708149,2.8804,4313.1,4313.0,0.004]
[1757129708822,2.8804,4313.1,4313.0,0.144]
[1757129715347,2.8804,4313.1,4313.0,2.913]
[1757129715530,2.8804,4313.1,4313.0,16.332]
[1757129715726,3.2117664,4313.1,4313.0,16.332]
[1757129716331,1.0562664,4313.1,4313.0,16.332]
[1757129716845,2.3395664,4313.1,4313.0,16.332]
[1757129717045,3.1315664,4313.1,4313.0,16.332]
[1757129717371,1.8482664,4313.1,4313.0,16.332]
[1757129718339,1.8482664,4313.1,4313.0,13.563]
[1757129718875,2.8002,4313.1,4313.0,13.563]
[1757129720278,2.8002,4313.1,4313.0,1.848]
[1757129720479,2.8002,4313.1,4313.0,0.144]
[1757129722396,1.0835,4313.1,4313.0,0.144]
[1757129722548,0.001,4313.3,4313.0,0.144]
[1757129722743,0.001,4313.3,4313.1,1.2443]
[1757129723362,0.001,4313.3,4313.2,0.69490209]
[1757129725389,0.001,4313.3,4313.2,9.85390209]
[1757129725588,0.001,4313.3,4313.2,16.88290209]
[1757129726790,0.001,4313.3,4313.2,11.96820209]
[1757129727755,0.001,4313.3,4313.2,6.64320209]
[1757129728089,0.001,4313.3,4313.2,4.93920209]
[1757129728589,0.001,4313.3,4313.2,8.79720209]
[1757129728950,0.001,4313.3,4313.2,4.93920209]
[1757129729176,0.001,4313.3,4313.2,8.79720209]
[1757129730114,0.001,4313.3,4313.2,4.93920209]
[1757129730291,0.001,4313.3,4313.2,8.79720209]
[1757129730670,0.001,4313.3,4313.2,4.93920209]
[1757129730866,0.001,4313.3,4313.2,7.55290209]
[1757129731701,0.001,4313.3,4313.2,8.79720209]
[1757129732604,0.001,4313.3,4313.2,4.93920209]
[1757129733099,0.001,4313.3,4313.2,8.79720209]
[1757129733773,0.001,4313.3,4313.2,7.55290209]
[1757129735503,0.001,4313.3,4313.2,23.74090209]
[1757129738679,0.7615,4313.3,4313.2,19.88290209]
[1757129738911,2.32858,4313.3,4313.2,23.73990209]
[1757129739099,2.0448,4313.3,4313.2,23.73990209]
[1757129739299,0.001,4313.3,4313.2,14.58090209]
[1757129739618,0.4671,4313.3,4313.2,14.58090209]
[1757129740092,0.7761,4313.3,4313.2,14.58090209]
[1757129740581,0.4671,4313.3,4313.2,14.58090209]
[1757129741428,0.4671,4313.3,4313.2,7.55190209]
[1757129741737,0.001,4313.3,4313.2,7.55190209]
[1757129742237,0.4671,4313.3,4313.2,7.55190209]
[1757129743095,0.001,4313.3,4313.2,7.55190209]
[1757129743931,0.31,4313.3,4313.2,7.55190209]
[1757129744236,0.4671,4313.3,4313.2,7.55190209]
[1757129745155,0.001,4313.3,4313.2,7.55190209]
[1757129745505,0.001,4313.3,4313.2,23.73590209]
[1757129746038,0.001,4313.3,4313.2,20.96790209]
[1757129746245,0.001,4313.3,4313.2,14.57890209]
[1757129746437,0.001,4313.3,4313.2,10.58030209]
[1757129746599,0.001,4313.3,4313.2,8.87730209]
[1757129746800,0.7761,4313.3,4313.2,7.55190209]
[1757129747609,0.4671,4313.3,4313.2,7.55190209]
[1757129748523,0.001,4313.3,4313.2,7.55190209]
[1757129755558,0.001,4313.3,4313.2,23.73590209]
[1757129757020,0.001,4313.3,4313.2,20.96790209]
[1757129757520,0.001,4313.3,4313.2,7.20462038]
[1757129757961,0.001,4313.3,4313.2,6.85733867]
[1757129760827,0.4671,4313.3,4313.2,6.85733867]
[1757129762361,0.7761,4313.3,4313.2,6.85733867]
[1757129762924,0.001,4313.3,4313.2,8.18273867]
[1757129764800,0.001,4313.3,4313.2,8.5051448]
[1757129765456,0.001,4313.3,4313.2,24.6891448]
[1757129765893,0.001,4313.3,4313.2,22.19641067]
[1757129766035,0.001,4313.3,4313.2,15.80741067]
[1757129766228,0.001,4313.3,4313.2,15.5321448]
[1757129766667,0.001,4313.3,4313.2,45.5321448]
[1757129767859,0.1152,4313.6,4313.3,3.0]
[1757129768063,0.1152,4313.6,4313.5,3.0]
[1757129768532,0.1152,4313.6,4313.5,4.3254]
[1757129768876,0.1152,4313.6,4313.5,5.36556625]
[1757129769172,0.1152,4313.6,4313.5,5.34238322]
[1757129771454,0.1152,4313.6,4313.5,2.34238322]
[1757129771658,0.1152,4313.6,4313.5,7.54957709]
[1757129772077,0.1152,4313.6,4313.5,3.69457709]
[1757129772274,0.1152,4313.6,4313.5,7.54957709]
[1757129773653,0.1152,4313.6,4313.5,3.69457709]
[1757129773848,0.4057,4313.6,4313.5,3.69457709]
[1757129774049,2.14,4313.6,4313.5,7.54957709]
[1757129775482,2.14,4313.6,4313.5,23.73157709]
[1757129775794,0.8567,4313.6,4313.5,23.73157709]
[1757129777786,0.8567,4313.6,4313.5,20.96357709]
[1757129777997,0.8567,4313.6,4313.5,14.57557709]
[1757129778156,0.8577,4313.6,4313.5,14.57557709]
[1757129778992,2.141,4313.6,4313.5,3.69457709]
[1757129779206,2.3551,4313.6,4313.5,0.69457709]
[1757129779503,2.3551,4313.6,4313.5,1.208]
[1757129780794,2.3551,4313.6,4313.1,0.69857709]
[1757129781100,0.451,4313.5,4313.2,4.898]
[1757129781460,1.7343,4313.5,4313.2,4.898]
[1757129781674,0.2905,4313.3,4313.2,4.898]
[1757129781969,2.0248,4313.3,4313.2,4.898]
[1757129782562,2.0248,4313.3,4313.2,3.0]
[1757129782761,2.0248,4313.3,4313.2,6.855]
[1757129784204,0.7415,4313.3,4313.2,6.855]
[1757129785395,0.7415,4313.3,4313.2,21.334]
[1757129785707,0.7415,4313.3,4313.2,23.037]
[1757129786984,2.0248,4313.3,4313.2,20.269]
[1757129789103,0.001,4313.6,4313.2,20.269]
[1757129789308,0.451,4313.5,4313.2,6.855]
[1757129789511,0.451,4313.4,4313.2,6.855]
[1757129789711,0.7415,4313.3,4313.2,6.855]
[1757129792190,0.451,4313.3,4313.2,6.855]
[1757129792915,0.7415,4313.3,4313.2,6.855]
[1757129793500,2.0248,4313.3,4313.1,0.004]
[1757129793699,2.0248,4313.3,4313.2,6.855]
[1757129795519,2.0248,4313.3,4313.2,23.038]
[1757129796908,2.0248,4313.3,4313.2,18.8357593]
[1757129797111,2.0248,4313.3,4313.2,16.0677593]
[1757129797309,2.0248,4313.3,4313.2,9.6797593]
[1757129797498,2.0248,4313.3,4313.2,4.3557593]
[1757129797901,2.0248,4313.3,4313.2,4.0085186]
[1757129798089,2.0248,4313.3,4313.2,7.8635186]
[1757129798420,2.0248,4313.3,4313.2,6.1605186]
[1757129798578,2.0248,4313.3,4313.2,5.8132779]
[1757129798782,2.0248,4313.3,4313.2,1.9582779]
[1757129799014,2.22738,4313.3,4313.2,5.0092779]
[1757129799382,2.22738,4313.3,4313.2,5.8132779]
[1757129799815,2.40457536,4313.3,4313.2,1.9582779]
[1757129800114,2.40457536,4313.3,4313.2,5.8132779]
[1757129800320,2.20199536,4313.3,4313.2,5.8132779]
[1757129804305,0.17719536,4313.3,4313.2,5.8132779]
[1757129804499,0.4746,4313.6,4313.3,3.0]
[1757129804825,0.4746,4313.6,4313.4,6.854]
[1757129804826,0.4736,4313.5,4313.4,6.854]
[1757129805401,0.7668,4313.5,4313.4,23.038]
[1757129806719,0.93923161,4313.5,4313.4,23.038]
[1757129807096,0.93923161,4313.5,4313.4,20.27]
[1757129807301,0.17243161,4313.5,4313.4,20.27]
[1757129807524,0.4736,4313.5,4313.4,20.27]
[1757129807893,0.4736,4313.5,4313.4,20.96483931]
[1757129808893,0.4736,4313.5,4313.4,14.57583931]
[1757129809627,0.17257045,4313.5,4313.4,8.82223931]
[1757129809785,0.001,4313.6,4313.5,3.0]
[1757129810204,0.1152,4313.5,4313.4,5.1274]
[1757129810604,0.1152,4313.5,4313.4,4.3286]
[1757129814030,0.1162,4313.5,4313.4,4.3286]
[1757129814407,0.1162,4313.5,4313.4,5.602]
[1757129815193,0.1162,4313.5,4313.4,4.3286]
[1757129815394,0.1162,4313.5,4313.4,20.5126]
[1757129816542,0.1162,4313.5,4313.4,7.3286]
[1757129818944,0.5898,4313.5,4313.4,7.3286]
[1757129820146,0.883,4313.5,4313.4,7.3286]
[1757129820323,2.1687,4313.5,4313.4,7.3286]
[1757129820650,2.38567,4313.5,4313.4,7.3286]
[1757129823540,2.38567,4313.5,4313.4,4.3276]
[1757129823867,2.38567,4313.5,4313.4,3.853]
[1757129823868,3.17767,4313.5,4313.4,3.853]
[1757129825345,3.17767,4313.5,4313.4,6.621]
[1757129825547,3.17767,4313.5,4313.4,20.036]
[1757129829291,0.792,4313.4,4313.2,0.69489403]
[1757129829498,1.189067,4313.3,4313.2,0.69489403]
[1757129829636,0.792,4313.2,4311.1,0.02]
[1757129829976,0.792,4313.2,4311.4,0.69489403]
[1757129830134,3.09746103,4313.3,4311.1,0.02]
[1757129830135,1.0909,4312.2,4311.1,0.02]
[1757129830337,1.0909,4312.2,4311.4,0.69489403]
[1757129830572,1.0909,4312.2,4311.5,1.21319378]
[1757129830573,1.2598,4312.2,4311.5,1.21319378]
[1757129830781,0.7667,4312.2,4311.5,1.19]
[1757129830943,0.4678,4312.2,4311.7,0.69489403]
[1757129831142,0.7667,4312.2,4312.1,1.563]
[1757129832197,0.94305514,4312.2,4312.1,1.563]
[1757129832359,1.11656065,4312.2,4312.1,1.563]
[1757129833389,1.11656065,4312.2,4312.1,2.25806631]
[1757129835154,3.14736065,4312.2,4312.1,1.563]
[1757129835362,3.14736065,4312.2,4312.1,10.722]
[1757129835670,3.14736065,4312.2,4312.1,16.212]
[1757129835898,3.14736065,4312.2,4312.1,20.066]
[1757129837797,3.14736065,4312.2,4312.1,17.297]
[1757129839893,3.14736065,4312.2,4312.1,5.582]
[1757129841812,3.14736065,4312.2,4312.1,3.878]
[1757129843212,3.14736065,4312.2,4312.1,0.024]
[1757129843388,3.14736065,4312.2,4312.1,1.124]
[1757129845378,3.14736065,4312.2,4312.1,15.61]
[1757129845597,3.14736065,4312.2,4312.1,17.314]
[1757129846982,1.90856065,4312.2,4312.1,14.545]
[1757129847182,1.90856065,4312.2,4312.1,8.154]
[1757129848121,3.14736065,4312.2,4312.1,8.154]
[1757129849018,3.14736065,4312.2,4312.1,2.828]
[1757129849188,3.14736065,4312.2,4312.1,1.124]
[1757129849602,3.13820114,4312.2,4312.1,1.124]
[1757129850099,1.89940114,4312.2,4312.1,1.124]
[1757129850702,1.90040114,4312.2,4312.1,1.124]
[1757129852720,3.13920114,4312.2,4312.1,1.124]
[1757129853487,1.90040114,4312.2,4312.1,1.124]
[1757129853888,1.14286065,4312.2,4312.1,1.124]
[1757129854711,1.61066065,4312.2,4312.1,1.124]
[1757129855424,1.61066065,4312.2,4312.1,17.314]
[1757129855812,1.14286065,4312.2,4312.1,17.314]
[1757129856014,0.96935514,4312.2,4312.1,17.314]
[1757129856228,0.96935514,4312.2,4312.1,14.545]
[1757129856630,0.96935514,4312.2,4312.1,8.154]
[1757129856631,1.73605514,4312.2,4312.1,8.154]
[1757129858629,1.73605514,4312.2,4312.1,1.124]
[1757129858803,2.01751121,4312.2,4312.1,1.124]
[1757129859624,1.54971121,4312.2,4312.1,1.124]
[1757129859819,1.54971121,4312.2,4312.1,1.81910817]
[1757129860140,2.00161121,4312.2,4312.1,1.81910817]
[1757129860367,1.25081121,4312.2,4312.1,1.81910817]
[1757129860658,0.793,4312.2,4312.1,2.97950817]
[1757129861242,0.793,4312.2,4312.1,1.81910817]
[1757129866738,1.2449,4312.2,4312.1,18.00910817]
[1757129867872,1.2449,4312.2,4312.1,17.314]
[1757129868575,1.2449,4312.2,4312.1,8.154]
[1757129869383,1.5595,4312.2,4312.1,8.154]
[1757129869556,0.9072,4312.1,4311.8,0.39669294]
[1757129869755,2.0532,4312.1,4311.9,3.854]
[1757129869955,0.7665,4312.0,4311.9,3.854]
[1757129870465,0.7665,4312.0,4311.7,0.04929059]
[1757129870673,0.1152,4311.9,4311.7,0.04929059]
[1757129870986,0.1152,4311.9,4311.6,0.004]
[1757129871156,0.4519,4312.0,4311.6,0.004]
[1757129871360,0.4519,4311.9,4311.6,0.004]
[1757129871743,0.4519,4311.9,4311.7,2.195]
[1757129872182,0.792,4312.1,4311.7,2.195]
[1757129872492,0.4519,4312.0,4311.7,2.195]
[1757129872784,0.4519,4311.9,4311.7,2.195]
[1757129873548,0.792,4312.1,4311.7,2.195]
[1757129873750,1.2439,4312.1,4311.7,2.195]
[1757129874586,0.792,4312.1,4311.8,1.1604]
[1757129875090,0.1152,4311.8,4311.7,2.195]
[1757129875395,0.1152,4311.8,4311.7,11.355]
[1757129875685,0.1152,4311.8,4311.7,18.385]
[1757129878206,2.1429,4311.8,4311.7,14.11609529]
[1757129878365,2.1429,4311.8,4311.7,11.57909529]
[1757129878564,0.8817,4311.8,4311.7,11.57909529]
[1757129880429,0.1152,4311.8,4311.7,11.57909529]
[1757129880707,0.1152,4311.8,4311.7,4.54909529]
[1757129881066,0.5671,4311.8,4311.7,4.54909529]
[1757129881485,0.1152,4311.8,4311.7,4.54909529]
[1757129882813,0.8817,4311.8,4311.7,4.54909529]
[1757129883931,3.22839,4311.8,4311.7,0.69509529]
[1757129884067,3.22839,4311.8,4311.6,0.004]
[1757129884068,0.792,4311.7,4311.6,0.004]
[1757129884290,2.0532,4311.7,4311.6,1.832]
[1757129884603,2.8197,4311.7,4311.6,0.004]
[1757129885007,2.8197,4311.7,4311.6,0.563]
[1757129885231,3.131019,4311.7,4311.6,0.563]
[1757129885534,3.131019,4311.7,4311.6,19.753]
[1757129885732,2.8197,4311.7,4311.6,19.753]
[1757129886615,1.5585,4311.7,4311.6,19.753]
[1757129886815,1.2612,4312.0,4311.6,19.753]
[1757129887015,1.2612,4311.9,4311.6,19.753]
[1757129887329,0.3146,4311.7,4311.6,10.593]
[1757129887627,1.5758,4311.7,4311.6,3.563]
[1757129887990,0.001,4312.2,4311.7,3.0]
[1757129888193,0.001,4312.2,4311.6,4.25818389]
[1757129888194,0.3146,4311.7,4311.6,1.25818389]
[1757129888423,0.001,4312.2,4311.6,0.563]
[1757129888608,0.001,4312.2,4311.6,1.25818388]
[1757129888809,0.793,4312.2,4311.6,1.25818388]
[1757129889006,0.792,4312.0,4311.6,1.25818388]
[1757129889336,0.792,4312.0,4311.8,3.0]
[1757129889793,0.2992,4311.9,4311.8,3.0]
[1757129889994,0.2992,4311.9,4311.8,2.65259684]
[1757129890227,1.5251,4311.9,4311.8,2.65259684]
[1757129890625,0.558759,4311.9,4311.8,2.65259684]
[1757129890931,0.558759,4311.9,4311.8,2.30516552]
[1757129891295,1.784659,4311.9,4311.8,2.30516552]
[1757129891848,0.558759,4311.9,4311.8,2.30516552]
[1757129892023,0.558759,4311.9,4311.8,1.9577342]
[1757129893526,0.259559,4311.9,4311.8,2.1896559]
[1757129895242,0.259559,4311.9,4311.8,2.36059284]
[1757129895475,0.259559,4311.9,4311.8,18.55159284]
[1757129897115,0.259559,4311.9,4311.8,19.01609284]
[1757129897310,0.792,4312.0,4311.9,0.23191632]
[1757129897511,0.792,4312.0,4311.9,7.08491632]
[1757129897915,0.792,4312.0,4311.9,7.78010021]
[1757129898917,1.0898,4312.0,4311.9,7.78010021]
[1757129899440,2.3157,4312.0,4311.9,7.78010021]
[1757129899763,1.036119,4312.0,4311.9,7.78010021]
[1757129900125,0.792,4312.0,4311.9,8.07960021]
[1757129900326,0.001,4312.2,4312.1,0.23190556]
[1757129900533,0.001,4312.2,4312.1,7.10809611]
[1757129900732,0.001,4312.2,4312.1,9.08680556]
[1757129900935,0.001,4312.2,4312.1,9.50189085]
[1757129902242,0.001,4312.2,4312.1,3.32458472]
[1757129902441,0.001,4312.2,4312.1,7.17758472]
[1757129902442,2.1088,4312.2,4312.1,7.17758472]
[1757129903014,2.1088,4312.2,4312.1,3.32458472]
[1757129903271,2.1088,4312.2,4312.1,7.17758472]
[1757129903490,0.792,4312.1,4311.8,0.004]
[1757129903651,1.00288,4312.1,4312.0,0.23191094]
[1757129903980,2.68098,4312.1,4312.0,0.23191094]
[1757129905066,2.52798,4312.1,4312.0,0.23191094]
[1757129905444,2.52798,4312.1,4312.0,16.42291094]
[1757129911081,1.00288,4312.1,4312.0,16.42291094]
[1757129911244,0.0899,4312.1,4312.0,16.42291094]
[1757129916328,2.1078,4312.1,4312.0,16.42291094]
[1757129917991,2.1078,4312.1,4312.0,20.27591094]
[1757129920078,0.792,4312.1,4312.0,20.27591094]
[1757129922572,0.8846,4312.1,4312.0,20.27591094]
[1757129923115,1.09834,4312.1,4312.0,20.27591094]
[1757129923318,1.09934,4312.1,4312.0,20.27591094]
[1757129926949,1.00674,4312.1,4312.0,20.27591094]
[1757129928154,1.09664,4312.1,4312.0,20.27591094]
[1757129929154,1.00674,4312.1,4312.0,20.27591094]
[1757129929527,0.793,4312.1,4312.0,21.03231094]
[1757129932380,0.793,4312.1,4312.0,20.27591094]
[1757129933979,0.8829,4312.1,4312.0,20.27591094]
[1757129937785,0.793,4312.1,4312.0,20.27591094]
[1757129937985,0.793,4312.1,4312.0,21.03231094]
[1757129938780,0.99758,4312.1,4312.0,21.03231094]
[1757129939390,0.793,4312.1,4312.0,21.03231094]
[1757129940254,0.793,4312.1,4312.0,22.20431094]
[1757129941046,0.793,4312.1,4312.0,21.03231094]
[1757129947361,0.793,4312.1,4312.0,20.27591094]
[1757129948498,0.8829,4312.1,4312.0,20.27591094]
[1757129953502,0.8829,4312.1,4312.0,20.50782189]
[1757129953704,0.793,4312.1,4312.0,20.50782189]
[1757129963337,0.793,4312.1,4312.0,21.26242189]
[1757129976847,0.793,4312.1,4312.0,20.50782189]
[1757129977528,0.793,4312.1,4312.0,20.97182189]
[1757129979367,0.793,4312.1,4312.0,21.26242189]
[1757129982867,0.001,4312.6,4312.0,24.9145]
[1757129983161,0.001,4313.6,4312.9,0.4637251]
[1757129983360,0.001,4313.6,4312.9,9.34113123]
[1757129983530,0.001,4313.6,4312.9,11.18273123]
[1757129983727,0.001,4313.6,4313.5,0.4636606]
[1757129984075,0.001,4313.6,4313.5,7.3146606]
[1757129984223,0.001,4313.6,4313.5,9.1562606]
[1757129984734,0.001,4313.6,4313.5,9.24890971]
[1757129985460,0.001,4313.6,4313.5,25.44190971]
[1757129990637,0.001,4313.6,4313.5,10.95290971]
[1757129990838,0.001,4313.6,4313.5,9.24890971]
[1757129993141,0.001,4313.6,4313.5,9.25290971]
[1757129995585,0.001,4313.6,4313.5,25.44190971]
[1757130000770,0.001,4313.6,4313.5,22.67290971]
[1757130002761,0.001,4313.6,4313.5,9.25290971]
[1757130003995,2.0838,4313.6,4313.5,7.41130971]
[1757130004155,1.09578,4313.6,4313.5,7.41130971]
[1757130004358,0.8829,4313.6,4313.5,7.41130971]
[1757130004673,0.793,4313.6,4313.5,7.41130971]
[1757130005501,0.793,4313.6,4313.5,23.59930971]
[1757130005969,0.8856,4313.6,4313.5,23.59930971]
[1757130006175,2.0865,4313.6,4313.5,23.59930971]
[1757130006375,2.29965,4313.6,4313.5,23.59930971]
[1757130007101,1.00615,4313.6,4313.5,23.59930971]
[1757130008314,1.00615,4313.6,4313.5,20.83030971]
[1757130008476,1.00615,4313.6,4313.5,14.44030971]
[1757130008825,1.09605,4313.6,4313.5,14.44030971]
[1757130009615,1.00615,4313.6,4313.5,14.44030971]
[1757130010178,1.00615,4313.6,4313.5,9.11530971]
[1757130012310,1.00615,4313.6,4313.5,7.41130971]
[1757130012897,1.10785,4313.6,4313.5,7.41130971]
[1757130013825,2.21745,4313.6,4313.5,7.41130971]
[1757130014182,1.10785,4313.6,4313.5,7.41130971]
[1757130015428,1.00615,4313.6,4313.5,24.37590971]
[1757130015611,0.793,4313.6,4313.5,24.37590971]
[1757130015920,0.793,4313.6,4313.5,15.21690971]
[1757130017636,0.793,4313.6,4313.5,16.39500971]
[1757130017807,0.793,4313.6,4313.5,9.11530971]
[1757130018524,0.793,4313.6,4313.5,7.41130971]
[1757130019649,0.793,4313.6,4313.5,8.18790971]